fUSD/lending_fUSD_20240814
["ID","MTS","AMOUNT","RATE_DAILY","PERIOD"]
[334951362,1723669850436,-3705.435311,0.00014236,2]
[334951364,1723669850451,-151.0,0.00014236,2]
[334951366,1723669850469,-1492.587303,0.00014236,2]
[334951368,1723669850483,-1492.587303,0.00014236,2]
[334951370,1723669850497,-151.0,0.00014236,2]
[334951372,1723669850514,-151.0,0.00014236,2]
[334951374,1723669850528,-252.298431,0.00014236,2]
[334951376,1723669850545,-252.298431,0.00014236,2]
[334951378,1723669850559,-476.086178,0.00014236,2]
[334951380,1723669850569,-476.086178,0.00014236,2]
[334951382,1723669850578,-10000.0,0.00014236,2]
[334951383,1723669850587,-10000.0,0.00014236,2]
[334951385,1723669850597,-10000.0,0.00014236,2]
[334951387,1723669850606,-151.0,0.00014236,2]
[334951388,1723669850617,-10000.0,0.00014236,2]
[334951390,1723669850627,-475.074164,0.00014236,2]
[334951392,1723669850636,-475.074164,0.00014236,2]
[334951393,1723669850646,-151.0,0.00014236,2]
[334951395,1723669850655,-151.0,0.00014236,2]
[334951397,1723669850665,-283.517932,0.00014236,2]
[334951399,1723669850675,-283.517932,0.00014236,2]
[334951400,1723669850684,-3854.115604,0.00014236,2]
[334951417,1723669850891,-3854.115604,0.00014236,2]
[334951420,1723669850918,-1702.012306,0.00014236,2]
[334951422,1723669850930,-84468.8717965,0.00014236,2]
[334951424,1723669850939,-480.12415819,0.00014245,2]
[334951425,1723669850949,-631.16,0.00014245,2]
[334951427,1723669850958,-2569.11,0.00014245,2]
[334951429,1723669850967,-151.0,0.00014246,2]
[334951431,1723669850976,-151.0,0.00014246,2]
[334951432,1723669850985,-151.0,0.00014246,2]
[334951434,1723669850994,-151.0,0.00014246,2]
[334951436,1723669851003,-151.0,0.00014246,2]
[334951438,1723669851012,-266.084203,0.00014246,2]
[334951439,1723669851021,-152.844464,0.00014246,2]
[334951441,1723669851031,-152.844464,0.00014246,2]
[334951443,1723669851040,-151.0,0.00014246,2]
[334951445,1723669851049,-199.042961,0.00014246,2]
[334951446,1723669851059,-199.042961,0.00014246,2]
[334951448,1723669851067,-209.063682,0.00014246,2]
[334951450,1723669851076,-209.063682,0.00014246,2]
[334951451,1723669851086,-423.799009,0.00014246,2]
[334951453,1723669851095,-423.799009,0.00014246,2]
[334951455,1723669851104,-1515.607436,0.00014246,2]
[334951456,1723669851113,-1515.607436,0.00014246,2]
[334951458,1723669851122,-151.0,0.00014246,2]
[334951460,1723669851131,-151.0,0.00014246,2]
[334951462,1723669851140,-500.0,0.00014246,2]
[334951463,1723669851149,-1342.759019,0.00014246,2]
[334951465,1723669851158,-1342.759019,0.00014246,2]
[334951467,1723669851167,-151.0,0.00014246,2]
[334951469,1723669851175,-366.020526,0.00014246,2]
[334951470,1723669851185,-366.020526,0.00014246,2]
[334951472,1723669851194,-557.46638,0.00014246,2]
[334951474,1723669851203,-500.0,0.00014246,2]
[334951476,1723669851212,-557.46638,0.00014246,2]
[334951477,1723669851223,-500.0,0.00014246,2]
[334951479,1723669851232,-355.637819,0.00014246,2]
[334951481,1723669851241,-355.637819,0.00014246,2]
[334951482,1723669851250,-500.0,0.00014246,2]
[334951484,1723669851259,-151.0,0.00014246,2]
[334951486,1723669851268,-500.0,0.00014246,2]
[334951488,1723669851277,-537.200343,0.00014246,2]
[334951489,1723669851286,-537.200343,0.00014246,2]
[334951491,1723669851295,-537.200343,0.00014246,2]
[334951493,1723669851307,-537.200343,0.00014246,2]
[334951495,1723669851323,-257.472662,0.00014246,2]
[334951496,1723669851332,-257.472662,0.00014246,2]
[334951498,1723669851341,-257.472662,0.00014246,2]
[334951500,1723669851351,-257.472662,0.00014246,2]
[334951502,1723669851360,-1362.118776,0.00014246,2]
[334951503,1723669851369,-1362.118776,0.00014246,2]
[334951505,1723669851379,-1362.118776,0.00014246,2]
[334951507,1723669851388,-1362.118776,0.00014246,2]
[334951509,1723669851397,-2690.457512,0.00014246,2]
[334951510,1723669851406,-476.997783,0.00014246,2]
[334951512,1723669851415,-476.997783,0.00014246,2]
[334951514,1723669851424,-2690.457512,0.00014246,2]
[334951515,1723669851433,-476.997783,0.00014246,2]
[334951517,1723669851442,-476.997783,0.00014246,2]
[334951519,1723669851452,-500.0,0.00014246,2]
[334951521,1723669851462,-500.0,0.00014246,2]
[334951523,1723669851475,-500.0,0.00014246,2]
[334951524,1723669851485,-500.0,0.00014246,2]
[334951526,1723669851494,-500.0,0.00014246,2]
[334951528,1723669851503,-500.0,0.00014246,2]
[334951530,1723669851514,-181.617813,0.00014246,2]
[334951531,1723669851523,-181.617813,0.00014246,2]
[334951533,1723669851533,-151.0,0.00014246,2]
[334951535,1723669851542,-151.0,0.00014246,2]
[334951537,1723669851551,-500.0,0.00014246,2]
[334951539,1723669851560,-500.0,0.00014246,2]
[334951541,1723669851569,-181.617813,0.00014246,2]
[334951543,1723669851578,-181.617813,0.00014246,2]
[334951545,1723669851588,-500.0,0.00014246,2]
[334951547,1723669851597,-500.0,0.00014246,2]
[334951549,1723669851607,-151.0,0.00014246,2]
[334951551,1723669851616,-151.0,0.00014246,2]
[334951553,1723669851625,-500.0,0.00014246,2]
[334951555,1723669851634,-151.0,0.00014246,2]
[334951556,1723669851643,-151.0,0.00014246,2]
[334951557,1723669851653,-151.0,0.00014246,2]
[334951558,1723669851663,-151.0,0.00014246,2]
[334951559,1723669851672,-151.0,0.00014246,2]
[334951560,1723669851681,-151.0,0.00014246,2]
[334951561,1723669851690,-500.0,0.00014246,2]
[334951562,1723669851700,-500.0,0.00014246,2]
[334951563,1723669851709,-500.0,0.00014246,2]
[334951564,1723669851719,-752.389905,0.00014246,2]
[334951565,1723669851729,-752.389905,0.00014246,2]
[334951566,1723669851739,-151.0,0.00014246,2]
[334951567,1723669851749,-151.0,0.00014246,2]
[334951568,1723669851758,-752.389905,0.00014246,2]
[334951569,1723669851767,-752.389905,0.00014246,2]
[334951570,1723669851776,-500.0,0.00014246,2]
[334951571,1723669851786,-500.0,0.00014246,2]
[334951572,1723669851795,-500.0,0.00014246,2]
[334951573,1723669851806,-500.0,0.00014246,2]
[334951574,1723669851815,-500.0,0.00014246,2]
[334951575,1723669851824,-500.0,0.00014246,2]
[334951577,1723669851833,-500.0,0.00014246,2]
[334951578,1723669851842,-500.0,0.00014246,2]
[334951580,1723669851851,-796.22,0.00014246,2]
[334951581,1723669851860,-743.794367,0.00014246,2]
[334951584,1723669851869,-743.794367,0.00014246,2]
[334951585,1723669851879,-151.0,0.00014246,2]
[334951587,1723669851888,-500.0,0.00014246,2]
[334951589,1723669851897,-151.0,0.00014246,2]
[334951591,1723669851906,-743.794367,0.00014246,2]
[334951593,1723669851916,-743.794367,0.00014246,2]
[334951595,1723669851925,-500.0,0.00014246,2]
[334951597,1723669851935,-163.660718,0.00014246,2]
[334951599,1723669851944,-500.0,0.00014246,2]
[334951601,1723669851952,-324.367052,0.00014246,2]
[334951603,1723669851961,-324.367052,0.00014246,2]
[334951605,1723669851970,-500.0,0.00014246,2]
[334951607,1723669851980,-500.0,0.00014246,2]
[334951609,1723669851989,-324.367052,0.00014246,2]
[334951611,1723669851998,-324.367052,0.00014246,2]
[334951613,1723669852007,-500.0,0.00014246,2]
[334951615,1723669852015,-500.0,0.00014246,2]
[334951617,1723669852024,-500.0,0.00014246,2]
[334951619,1723669852033,-365.112916,0.00014246,2]
[334951621,1723669852043,-1119.76,0.00014246,2]
[334951623,1723669852053,-500.0,0.00014246,2]
[334951625,1723669852062,-365.112916,0.00014246,2]
[334951627,1723669852071,-500.0,0.00014246,2]
[334951629,1723669852081,-544.21,0.00014246,2]
[334951631,1723669852089,-503.49,0.00014246,2]
[334951633,1723669852099,-500.0,0.00014246,2]
[334951635,1723669852108,-526.44,0.00014246,2]
[334951637,1723669852117,-500.0,0.00014246,2]
[334951639,1723669852126,-500.0,0.00014246,2]
[334951641,1723669852136,-500.0,0.00014246,2]
[334951643,1723669852145,-500.0,0.00014246,2]
[334951645,1723669852154,-482.01789209,0.00014246,2]
[334951647,1723669852162,-500.0,0.00014246,2]
[334951649,1723669852171,-500.0,0.00014246,2]
[334951651,1723669852181,-500.0,0.00014246,2]
[334951653,1723669852190,-500.0,0.00014246,2]
[334951655,1723669852199,-179.951685,0.00014246,2]
[334951657,1723669852208,-500.0,0.00014246,2]
[334951659,1723669852217,-151.0,0.00014246,2]
[334951661,1723669852226,-151.0,0.00014246,2]
[334951663,1723669852236,-500.0,0.00014246,2]
[334951665,1723669852245,-500.0,0.00014246,2]
[334951667,1723669852253,-500.0,0.00014246,2]
[334951669,1723669852262,-1678.004423,0.00014246,2]
[334951671,1723669852271,-1678.004423,0.00014246,2]
[334951673,1723669852280,-1678.004423,0.00014246,2]
[334951675,1723669852290,-1678.004423,0.00014246,2]
[334951677,1723669852299,-500.0,0.00014246,2]
[334951679,1723669852309,-500.0,0.00014246,2]
[334951681,1723669852317,-500.0,0.00014246,2]
[334951683,1723669852327,-500.0,0.00014246,2]
[334951685,1723669852336,-536.81,0.00014246,2]
[334951687,1723669852346,-500.0,0.00014246,2]
[334951689,1723669852354,-500.0,0.00014246,2]
[334951691,1723669852365,-205.65466,0.00014246,2]
[334951693,1723669852374,-205.65466,0.00014246,2]
[334951695,1723669852383,-273.624296,0.00014246,2]
[334951697,1723669852393,-273.624296,0.00014246,2]
[334951699,1723669852402,-205.65466,0.00014246,2]
[334951701,1723669852411,-205.65466,0.00014246,2]
[334951703,1723669852421,-500.0,0.00014246,2]
[334951705,1723669852430,-273.624296,0.00014246,2]
[334951707,1723669852440,-215.020153,0.00014246,2]
[334951709,1723669852450,-500.0,0.00014246,2]
[334951711,1723669852462,-273.624296,0.00014246,2]
[334951713,1723669852473,-215.020153,0.00014246,2]
[334951715,1723669852482,-215.020153,0.00014246,2]
[334951717,1723669852491,-215.020153,0.00014246,2]
[334951719,1723669852501,-500.0,0.00014246,2]
[334951720,1723669852510,-731.21,0.00014246,2]
[334951722,1723669852519,-151.0,0.00014246,2]
[334951725,1723669852528,-151.0,0.00014246,2]
[334951726,1723669852540,-500.0,0.00014246,2]
[334951728,1723669852550,-660.59,0.00014246,2]
[334951730,1723669852560,-946.97,0.00014246,2]
[334951732,1723669852569,-500.0,0.00014246,2]
[334951734,1723669852579,-384.690137,0.00014246,2]
[334951736,1723669852589,-384.690137,0.00014246,2]
[334951738,1723669852598,-500.0,0.00014246,2]
[334951741,1723669852608,-500.0,0.00014246,2]
[334951743,1723669852618,-384.690137,0.00014246,2]
[334951745,1723669852628,-384.690137,0.00014246,2]
[334951747,1723669852638,-500.0,0.00014246,2]
[334951749,1723669852648,-500.0,0.00014246,2]
[334951751,1723669852657,-500.0,0.00014246,2]
[334951753,1723669852666,-2144.199459,0.00014246,2]
[334951755,1723669852675,-2144.199459,0.00014246,2]
[334951757,1723669852685,-526.81,0.00014246,2]
[334951759,1723669852694,-2144.199459,0.00014246,2]
[334951761,1723669852703,-2144.199459,0.00014246,2]
[334951763,1723669852713,-500.0,0.00014246,2]
[334951765,1723669852722,-500.0,0.00014246,2]
[334951767,1723669852731,-333.962182,0.00014246,2]
[334951769,1723669852741,-333.962182,0.00014246,2]
[334951770,1723669852751,-500.0,0.00014246,2]
[334951772,1723669852760,-500.0,0.00014246,2]
[334951774,1723669852770,-333.962182,0.00014246,2]
[334951776,1723669852779,-333.962182,0.00014246,2]
[334951778,1723669852790,-500.0,0.00014246,2]
[334951780,1723669852799,-392.045528,0.00014246,2]
[334951782,1723669852809,-392.045528,0.00014246,2]
[334951784,1723669852819,-500.0,0.00014246,2]
[334951786,1723669852828,-392.045528,0.00014246,2]
[334951788,1723669852837,-392.045528,0.00014246,2]
[334951790,1723669852847,-3705.435311,0.00014246,2]
[334951792,1723669852856,-3705.435311,0.00014246,2]
[334951794,1723669852866,-500.0,0.00014246,2]
[334951796,1723669852875,-3705.435311,0.00014246,2]
[334951798,1723669852884,-3705.435311,0.00014246,2]
[334951800,1723669852894,-500.0,0.00014246,2]
[334951803,1723669852904,-500.0,0.00014246,2]
[334951805,1723669852914,-500.0,0.00014246,2]
[334951807,1723669852923,-500.0,0.00014246,2]
[334951809,1723669852932,-500.0,0.00014246,2]
[334951810,1723669852941,-500.0,0.00014246,2]
[334951812,1723669852950,-500.0,0.00014246,2]
[334951825,1723669853057,-288.02030057,0.00014246,2]
[334951827,1723669853068,-500.0,0.00014246,2]
[334951829,1723669853076,-500.0,0.00014246,2]
[334951831,1723669853085,-500.0,0.00014246,2]
[334951833,1723669853094,-500.0,0.00014246,2]
[334951835,1723669853103,-500.0,0.00014246,2]
[334951837,1723669853112,-151.0,0.00014246,2]
[334951839,1723669853121,-151.0,0.00014246,2]
[334951841,1723669853129,-500.0,0.00014246,2]
[334951843,1723669853139,-500.0,0.00014246,2]
[334951845,1723669853147,-620.57,0.00014246,2]
[334951847,1723669853156,-151.0,0.00014246,2]
[334951849,1723669853165,-151.0,0.00014246,2]
[334951851,1723669853174,-1492.587303,0.00014246,2]
[334951853,1723669853183,-1492.587303,0.00014246,2]
[334951855,1723669853192,-394.154218,0.00014246,2]
[334951857,1723669853201,-394.154218,0.00014246,2]
[334951859,1723669853209,-151.0,0.00014246,2]
[334951861,1723669853218,-154.585557,0.00014246,2]
[334951863,1723669853227,-500.0,0.00014246,2]
[334951865,1723669853236,-1492.587303,0.00014246,2]
[334951867,1723669853247,-1492.587303,0.00014246,2]
[334951869,1723669853256,-394.154218,0.00014246,2]
[334951871,1723669853265,-394.154218,0.00014246,2]
[334951873,1723669853274,-268.301681,0.00014246,2]
[334951875,1723669853283,-500.0,0.00014246,2]
[334951877,1723669853292,-553.78,0.00014246,2]
[334951879,1723669853301,-151.0,0.00014246,2]
[334951881,1723669853310,-151.0,0.00014246,2]
[334951883,1723669853319,-500.0,0.00014246,2]
[334951885,1723669853328,-500.0,0.00014246,2]
[334951887,1723669853337,-500.0,0.00014246,2]
[334951889,1723669853346,-500.0,0.00014246,2]
[334951891,1723669853355,-252.298431,0.00014246,2]
[334951893,1723669853364,-500.0,0.00014246,2]
[334951894,1723669853373,-252.298431,0.00014246,2]
[334951897,1723669853382,-500.0,0.00014246,2]
[334951899,1723669853391,-500.0,0.00014246,2]
[334951900,1723669853401,-500.0,0.00014246,2]
[334951902,1723669853410,-252.298431,0.00014246,2]
[334951904,1723669853419,-252.298431,0.00014246,2]
[334951906,1723669853428,-500.0,0.00014246,2]
[334951908,1723669853437,-500.0,0.00014246,2]
[334951910,1723669853446,-500.0,0.00014246,2]
[334951912,1723669853456,-500.0,0.00014246,2]
[334951914,1723669853469,-500.0,0.00014246,2]
[334951916,1723669853478,-500.0,0.00014246,2]
[334951918,1723669853487,-500.0,0.00014246,2]
[334951920,1723669853496,-500.0,0.00014246,2]
[334951922,1723669853506,-1362.25,0.00014246,2]
[334951924,1723669853515,-500.0,0.00014246,2]
[334951926,1723669853524,-500.0,0.00014246,2]
[334951928,1723669853533,-536.32,0.00014246,2]
[334951930,1723669853544,-590.65,0.00014246,2]
[334951932,1723669853553,-519.68,0.00014246,2]
[334951934,1723669853562,-770.13,0.00014246,2]
[334951936,1723669853571,-500.0,0.00014246,2]
[334951938,1723669853579,-552.54,0.00014246,2]
[334951940,1723669853588,-500.0,0.00014246,2]
[334951942,1723669853597,-1228.2,0.00014246,2]
[334951944,1723669853607,-500.0,0.00014246,2]
[334951946,1723669853617,-476.086178,0.00014246,2]
[334951947,1723669853626,-476.086178,0.00014246,2]
[334951949,1723669853636,-500.0,0.00014246,2]
[334951951,1723669853645,-500.0,0.00014246,2]
[334951953,1723669853655,-476.086178,0.00014246,2]
[334951954,1723669853664,-476.086178,0.00014246,2]
[334951955,1723669853673,-500.0,0.00014246,2]
[334951956,1723669853683,-500.0,0.00014246,2]
[334951957,1723669853692,-10000.0,0.00014246,2]
[334951958,1723669853701,-10000.0,0.00014246,2]
[334951959,1723669853710,-500.0,0.00014246,2]
[334951960,1723669853720,-1645.14,0.00014246,2]
[334951961,1723669853730,-500.0,0.00014246,2]
[334951962,1723669853739,-10000.0,0.00014246,2]
[334951963,1723669853748,-173.29939364,0.00014246,2]
[334951964,1723669853757,-10000.0,0.00014246,2]
[334951965,1723669853766,-500.0,0.00014246,2]
[334951966,1723669853776,-500.0,0.00014246,2]
[334951967,1723669853785,-8206.16931267,0.00014246,2]
[334951968,1723669853806,-1793.83068733,0.00014246,2]
[334951969,1723669853816,-1042.75559307,0.00014246,2]
[334951970,1723669853828,-8957.24440693,0.00014246,2]
[334951971,1723669853837,-200.265998,0.00014246,2]
[334951972,1723669853847,-151.0,0.00014246,2]
[334951973,1723669853857,-151.0,0.00014246,2]
[334951974,1723669853867,-500.0,0.00014246,2]
[334951976,1723669853878,-967.12917835,0.00014246,2]
[334951978,1723669853891,-273.72011597,0.00014246,2]
[334951980,1723669853903,-307.982,0.00014246,2]
[334951983,1723669853917,-2990.50036596,0.00014246,2]
[334951984,1723669853928,-3570.01645347,0.00014246,2]
[334951985,1723669853940,-612.67,0.00014246,2]
[334951986,1723669853952,-281.00881241,0.00014246,2]
[334951987,1723669853963,-996.97307384,0.00014246,2]
[334951988,1723669853973,-1739.70745298,0.00014246,2]
[334951989,1723669887472,881.081505,0.00025,81]
[334951990,1723669888568,881.081505,0.00025,81]
[334951991,1723669891281,881.081505,0.00025,82]
[334951992,1723669892010,881.081505,0.00025,82]
[334951993,1723669933585,509.081505,0.00025,82]
[334951994,1723669934458,509.081505,0.00025,82]
[334951995,1723669967802,509.081505,0.00025,83]
[334951996,1723669968441,509.081505,0.00025,83]
[334951997,1723669972013,509.081505,0.00025,84]
[334951998,1723669972587,509.081505,0.00025,84]
[334951999,1723669990349,509.081505,0.00025,88]
[334952000,1723669991176,509.081505,0.00025,88]
[334952001,1723669995614,509.081505,0.00025,89]
[334952002,1723669996736,509.081505,0.00025,89]
[334952003,1723670002675,509.081505,0.00025,90]
[334952004,1723670003540,509.081505,0.00025,90]
[334952005,1723670024073,977.081505,0.00025,92]
[334952006,1723670030180,977.081505,0.00025,92]
[334952007,1723670035844,977.081505,0.00025,93]
[334952008,1723670042668,977.081505,0.00025,93]
[334952009,1723670058927,797.081505,0.00025,92]
[334952010,1723670060061,797.081505,0.00025,92]
[334952011,1723670083595,199.081505,0.00025,93]
[334952012,1723670084496,199.081505,0.00025,93]
[334952013,1723670087380,199.081505,0.00025,93]
[334952014,1723670101945,199.081505,0.00027,120]
[334952015,1723670102795,199.081505,0.00027,120]
[334952016,1723670103431,199.081505,0.00027,120]
[334952017,1723670104093,199.081505,0.00027,120]
[334952018,1723670104723,199.081505,0.00027,120]
[334952019,1723670105324,199.081505,0.00027,120]
[334952020,1723670105946,199.081505,0.00027,120]
[334952021,1723670106490,199.081505,0.00027,120]
[334952022,1723670107151,199.081505,0.00027,120]
[334952023,1723670107760,199.081505,0.00027,120]
[334952024,1723670128943,157.081505,0.00027,120]
[334952025,1723670145842,157.081505,0.00025,96]
[334952026,1723670148265,157.081505,0.00025,96]
[334952027,1723670149202,157.081505,0.00025,96]
[334952028,1723670150081,157.081505,0.00025,96]
[334952029,1723670161233,157.081505,0.00025,97]
[334952030,1723670161980,157.081505,0.00025,97]
[334952031,1723670162673,157.081505,0.00025,97]
[334952032,1723670163400,157.081505,0.00025,97]
[334952033,1723670167577,157.081505,0.00025,98]
[334952034,1723670168241,157.081505,0.00025,98]
[334952035,1723670168930,157.081505,0.00025,98]
[334952036,1723670169542,157.081505,0.00025,98]
[334952037,1723670199383,157.081505,0.00025,83]
[334952038,1723670209164,157.081505,0.00025,83]
[334952039,1723670210236,157.081505,0.00025,83]
[334952040,1723670213445,157.081505,0.00025,83]
[334952041,1723670278600,157.081505,0.00025,74]
[334952042,1723670279030,157.081505,0.00025,74]
[334952043,1723670279679,157.081505,0.00025,74]
[334952044,1723670280172,157.081505,0.00025,74]
[334952045,1723670290024,277.081505,0.00025,75]
[334952046,1723670290640,277.081505,0.00025,75]
[334952047,1723670293497,277.081505,0.00025,76]
[334952048,1723670294105,277.081505,0.00025,76]
[334952049,1723670294680,277.081505,0.00025,76]
[334952050,1723670297833,277.081505,0.00025,77]
[334952051,1723670298357,277.081505,0.00025,77]
[334952052,1723670298845,277.081505,0.00025,77]
[334952053,1723670299398,277.081505,0.00025,77]
[334952054,1723670300363,277.081505,0.00025,77]
[334952055,1723670340673,277.081505,0.00027,120]
[334952056,1723670341899,277.081505,0.00027,120]
[334952057,1723670359487,599.081505,0.00027,120]
[334952058,1723670360622,599.081505,0.00027,120]
[334952059,1723670389204,599.081505,0.00025,94]
[334952060,1723670392366,599.081505,0.00025,95]
[334952061,1723670394929,599.081505,0.00025,96]
[334952091,1723670998104,1000.0,0.00025,60]
[334952095,1723671032169,-900.0,0.000108,3]
[334952096,1723671032178,-215.66,0.00010887,2]
[334952097,1723671032188,-1800.0,0.000109,3]
[334952098,1723671032198,-478.21935381,0.000109,2]
[334952099,1723671032207,-312.17786627,0.000109,2]
[334952100,1723671032216,-151.01,0.0001099,2]
[334952101,1723671032225,-151.01,0.0001099,2]
[334952102,1723671032235,-10534.15307555,0.00010993,2]
[334952103,1723671032246,-300.0,0.00010996,2]
[334952104,1723671032256,-5919.61534542,0.00010997,2]
[334952105,1723671032266,-156.15828307,0.00010999,2]
[334952106,1723671032276,-1619.78644028,0.00011,2]
[334952107,1723671032286,-23562.48566266,0.00011,2]
[334952108,1723671032304,-2883.21346343,0.00011,2]
[334952109,1723671032319,-655.60712406,0.00011,2]
[334952110,1723671032330,-80314.73783291,0.00011,2]
[334952111,1723671032342,-262.46590742,0.00011,2]
[334952112,1723671032354,-440.46604856,0.00011,2]
[334952113,1723671032368,-3834.18185265,0.00011,2]
[334952114,1723671032385,-545.15058203,0.00011,2]
[334952115,1723671032423,-4995.09547225,0.00011,2]
[334952116,1723671032438,-10130.5353258,0.00011,2]
[334952117,1723671032450,-313.57105066,0.00011,2]
[334952126,1723671038379,-552.62070963,0.00011,2]
[334952127,1723671038391,-2677.50344484,0.00011,2]
[334952128,1723671038402,-428.61941707,0.00011,2]
[334952129,1723671038414,-310.24010705,0.00011,2]
[334952130,1723671038441,-7457.2856901,0.00011,2]
[334952131,1723671038499,-1541.28962072,0.00011,2]
[334952132,1723671038672,-1042027.17580132,0.00011,2]
[334952133,1723671038681,-750.0,0.00011,2]
[334952134,1723671038690,-1041.89,0.00011,2]
[334952135,1723671038700,-151.01,0.0001199,2]
[334952136,1723671038709,-237.88,0.00012,2]
[334952137,1723671038719,-237.88,0.00012,2]
[334952138,1723671038728,-237.88,0.00012,2]
[334952139,1723671038737,-237.88,0.00012,2]
[334952140,1723671038746,-237.88,0.00012,2]
[334952141,1723671038755,-237.88,0.00012,2]
[334952142,1723671038765,-237.88,0.00012,2]
[334952143,1723671038774,-237.88,0.00012,2]
[334952144,1723671038783,-237.88,0.00012,2]
[334952145,1723671038793,-420.0,0.00012084,2]
[334952146,1723671038802,-194.66,0.00012084,2]
[334952147,1723671038811,-2502.58566001,0.00012089,2]
[334952148,1723671038822,-2386.18469969,0.00012126,2]
[334952149,1723671038833,-4700.10730928,0.00012126,2]
[334952150,1723671038843,-250.0,0.00012343,2]
[334952151,1723671038852,-312.17786625,0.00012456,2]
[334952152,1723671038862,-3092.31,0.0001257,2]
[334952153,1723671038872,-1500.0,0.00012613,2]
[334952154,1723671038882,-2111.39291129,0.00012613,2]
[334952155,1723671038891,-7900.80672794,0.00012722,2]
[334952156,1723671038901,-274.09,0.00012822,2]
[334952157,1723671038911,-478.2193538,0.00012829,2]
[334952158,1723671038920,-179.99,0.00012893,2]
[334952159,1723671038930,-1298.23330788,0.00012938,2]
[334952160,1723671038939,-3875.44196721,0.00012938,2]
[334952161,1723671038950,-1000.0,0.00012939,2]
[334952162,1723671038960,-160.0,0.00012941,2]
[334952163,1723671038969,-1074.67923523,0.00013001,2]
[334952164,1723671038978,-687.14739384,0.00013052,2]
[334952165,1723671038987,-158.24348016,0.00013052,2]
[334952166,1723671038997,-155.0,0.00013052,2]
[334952167,1723671039007,-653.64489815,0.00013052,2]
[334952168,1723671039016,-1139.1217656,0.00013052,2]
[334952169,1723671039026,-810.0,0.00013053,2]
[334952170,1723671039034,-406.267,0.00013053,2]
[334952173,1723671039044,-268.598,0.00013053,2]
[334952177,1723671039053,-764.0,0.00013053,2]
[334952181,1723671039062,-1204.0,0.00013053,2]
[334952184,1723671039071,-5134.0,0.00013053,2]
[334952187,1723671039081,-1673.0,0.00013053,2]
[334952189,1723671039090,-21761.0,0.00013053,2]
[334952190,1723671039100,-5831.0,0.00013053,2]
[334952192,1723671039109,-1257.0,0.00013053,2]
[334952194,1723671039118,-1251.09385514,0.00013086,3]
[334952196,1723671039128,-155.0,0.00013086,2]
[334952198,1723671039137,-155.0,0.00013086,2]
[334952199,1723671039147,-284.8414088,0.00013086,2]
[334952200,1723671039157,-155.0,0.00013086,2]
[334952201,1723671039166,-155.0,0.00013086,2]
[334952202,1723671039176,-164.37927092,0.00013086,2]
[334952204,1723671039186,-1739.57017204,0.00013086,2]
[334952205,1723671039196,-209.98082564,0.00013086,2]
[334952207,1723671039206,-177.37668646,0.00013086,2]
[334952209,1723671039215,-155.00000028,0.00013086,2]
[334952211,1723671039225,-155.0985082,0.00013086,2]
[334952213,1723671039235,-306.30964202,0.00013086,2]
[334952215,1723671039244,-155.0,0.00013086,2]